Departmental Family,Entitiy,Transaction number ,Payment date,Name ,Expense Area,Supplier,Description,Base Amount
BIS,NMO,5405,15/08/2014,Website maintenance,Enforcement ,ActiveIS Limited,Maintenance of RoHS website,501.6
BIS,NMO,5406,15/08/2014,Website maintenance,Corporate Services ,ActiveIS Limited,Maintenance of NMO website,838.8
BIS,NMO,5407,27/08/2014,Website maintenance,Enforcement ,ActiveIS Limited,Maintenance of Enforcement software,6120
BIS,NMO,5396,27/08/2014,Intangible assets,Enforcement ,ActiveIS Limited,Maintenance of Enforcement software,10080
BIS,NMO,28195608,08/08/2014,Building advisors,Estates,AECOM Prof Services LLP,Cost management services,4200
BIS,NMO,28195354,08/08/2014,Building advisors,Estates,AECOM Prof Services LLP,Project management/valuation services,32444.16
BIS,NMO,12-0552310,15/08/2014,Publications,Corporate Services ,Agora Business Publications LLP,Health & Safety publication,84.21
BIS,NMO,12-0348842,15/08/2014,Publications,Corporate Services ,Agora Business Publications LLP,Health & Safety publication,84.21
BIS,NMO,90373951,15/08/2014,Building construction,Estates,Amey Community Ltd,Estates repairs & renewals,-245.81
BIS,NMO,90373797,08/08/2014,Building construction,Estates,Amey Community Ltd,Estates repairs & renewals,1305.61
BIS,NMO,90373808a,08/08/2014,Building construction,Estates,Amey Community Ltd,Estates repairs & renewals,1506.19
BIS,NMO,90373806,08/08/2014,Building construction,Estates,Amey Community Ltd,Estates repairs & renewals,1865.82
BIS,NMO,90373812a,15/08/2014,Building construction,Estates,Amey Community Ltd,Estates repairs & renewals,2370.25
BIS,NMO,90373923b,08/08/2014,Building construction,Estates,Amey Community Ltd,Estates repairs & renewals,2674.02
BIS,NMO,90373907,08/08/2014,Building construction,Estates,Amey Community Ltd,Estates repairs & renewals,2836.5
BIS,NMO,90373915,08/08/2014,Plant & machinery,Estates,Amey Community Ltd,Estates repairs & renewals,4508.63
BIS,NMO,90373808b,08/08/2014,Building construction,Estates,Amey Community Ltd,Estates repairs & renewals,4654.32
BIS,NMO,90373820,08/08/2014,Building construction,Estates,Amey Community Ltd,Estates repairs & renewals,5392.15
BIS,NMO,90373923a,08/08/2014,Building construction,Estates,Amey Community Ltd,Estates repairs & renewals,5812.32
BIS,NMO,90373795,08/08/2014,Building construction,Estates,Amey Community Ltd,Estates repairs & renewals,6387.92
BIS,NMO,90373929a,08/08/2014,Building construction,Estates,Amey Community Ltd,Estates repairs & renewals,6938.71
BIS,NMO,90373790,08/08/2014,Building construction,Estates,Amey Community Ltd,Estates repairs & renewals,7114.42
BIS,NMO,90373800,08/08/2014,Building service charges,Estates,Amey Community Ltd,Estates repairs & renewals,7243
BIS,NMO,90373929b,08/08/2014,Plant & machinery,Estates,Amey Community Ltd,Estates repairs & renewals,7333.15
BIS,NMO,90373805b,08/08/2014,Plant & machinery,Estates,Amey Community Ltd,Estates repairs & renewals,7664.63
BIS,NMO,90373805a,08/08/2014,Building construction,Estates,Amey Community Ltd,Estates repairs & renewals,7664.64
BIS,NMO,90373823,08/08/2014,Building construction,Estates,Amey Community Ltd,Estates repairs & renewals,7714.03
BIS,NMO,90373821,08/08/2014,Building construction,Estates,Amey Community Ltd,Estates repairs & renewals,8628.31
BIS,NMO,90373822,08/08/2014,Building construction,Estates,Amey Community Ltd,Estates repairs & renewals,9085.19
BIS,NMO,90373911,08/08/2014,Building construction,Estates,Amey Community Ltd,Estates repairs & renewals,9085.76
BIS,NMO,90373801,08/08/2014,Building service charges,Estates,Amey Community Ltd,Estates repairs & renewals,9312.42
BIS,NMO,90374002,08/08/2014,Building service charges,Estates,Amey Community Ltd,Pension charges July - Sept 2014,10092.86
BIS,NMO,90373810a,15/08/2014,Building construction,Estates,Amey Community Ltd,Estates repairs & renewals,10651.02
BIS,NMO,90373793,08/08/2014,Building construction,Estates,Amey Community Ltd,Estates repairs & renewals,10748.21
BIS,NMO,90373792,08/08/2014,Building construction,Estates,Amey Community Ltd,Estates repairs & renewals,10849.84
BIS,NMO,90373910,08/08/2014,Building construction,Estates,Amey Community Ltd,Estates repairs & renewals,12473.12
BIS,NMO,90373927,08/08/2014,Building construction,Estates,Amey Community Ltd,Estates repairs & renewals,12535.44
BIS,NMO,90373814a,08/08/2014,Building construction,Estates,Amey Community Ltd,Estates repairs & renewals,15247.73
BIS,NMO,90373809,08/08/2014,Building construction,Estates,Amey Community Ltd,Estates repairs & renewals,15385.51
BIS,NMO,90373810b,15/08/2014,Building construction,Estates,Amey Community Ltd,Estates repairs & renewals,15697.76
BIS,NMO,90373799,08/08/2014,Building construction,Estates,Amey Community Ltd,Estates repairs & renewals,16417.4
BIS,NMO,90373819b,08/08/2014,Building construction,Estates,Amey Community Ltd,Estates repairs & renewals,16556.85
BIS,NMO,90373812b,15/08/2014,Building construction,Estates,Amey Community Ltd,Estates repairs & renewals,17325.01
BIS,NMO,90373817,08/08/2014,Plant & machinery,Estates,Amey Community Ltd,Estates repairs & renewals,18802.48
BIS,NMO,90373818,08/08/2014,Building construction,Estates,Amey Community Ltd,Estates repairs & renewals,20182.63
BIS,NMO,90373925,08/08/2014,Building construction,Estates,Amey Community Ltd,Estates repairs & renewals,20238.49
BIS,NMO,90373813,15/08/2014,Building construction,Estates,Amey Community Ltd,Estates repairs & renewals,21127.92
BIS,NMO,90373908,08/08/2014,Building construction,Estates,Amey Community Ltd,Estates repairs & renewals,21733.33
BIS,NMO,90373814b,08/08/2014,Building construction,Estates,Amey Community Ltd,Estates repairs & renewals,23786.25
BIS,NMO,90373803,08/08/2014,Building construction,Estates,Amey Community Ltd,Estates repairs & renewals,27714.89
BIS,NMO,90373919,08/08/2014,Building construction,Estates,Amey Community Ltd,Estates repairs & renewals,29036.32
BIS,NMO,90373804,08/08/2014,Building construction,Estates,Amey Community Ltd,Estates repairs & renewals,33246.29
BIS,NMO,90373796,08/08/2014,Building maintenance,Estates,Amey Community Ltd,Change of car park layout for new equipment ,34799.15
BIS,NMO,90373815,08/08/2014,Plant & machinery,Estates,Amey Community Ltd,Estates repairs & renewals,42250.87
BIS,NMO,90373816,08/08/2014,Plant & machinery,Estates,Amey Community Ltd,Estates repairs & renewals,42749.47
BIS,NMO,90373819a,08/08/2014,Building construction,Estates,Amey Community Ltd,Estates repairs & renewals,58757.21
BIS,NMO,90373811,08/08/2014,Building construction,Estates,Amey Community Ltd,Estates repairs & renewals,59547.38
BIS,NMO,90373752,08/08/2014,Building construction,Estates,Amey Community Ltd,Estates repairs & renewals,86601.41
BIS,NMO,90373798,08/08/2014,Plant & machinery,Estates,Amey Community Ltd,Estates repairs & renewals,103427.23
BIS,NMO,90373807,08/08/2014,Plant & machinery,Estates,Amey Community Ltd,Estates repairs & renewals,128550.79
BIS,NMO,B18207,27/08/2014,Miscellaneous,Enforcement ,Auto Mobile Valet Limited,Valet of pool cars,87.5
BIS,NMO,28522738,08/08/2014,Stationery,Corporate Services ,Banner Business Services Ltd,Stationery,40.13
BIS,NMO,28589202,27/08/2014,Stationery,Corporate Services ,Banner Business Services Ltd,Stationery,229.3
BIS,NMO,INV425175,08/08/2014,Intangible assets,Corporate Services ,Bottomline Technologies Ltd,E-Pay accounting software,1200
BIS,NMO,X45836,15/08/2014,Training,Enforcement ,Capita Business Services Ltd,Training course,125
BIS,NMO,X45837,15/08/2014,Training,Enforcement ,Capita Business Services Ltd,Training course,134
BIS,NMO,X46458,27/08/2014,Training,Enforcement ,Capita Business Services Ltd,Training course,134
BIS,NMO,X46461,27/08/2014,Training,Enforcement ,Capita Business Services Ltd,Training course,134
BIS,NMO,9457094,15/08/2014,Gas,Estates,Corona Energy Limited,Gas supply to NMO,1013.12
BIS,NMO,527,27/08/2014,Contractor's costs ,Certification Services ,D&J Services Limited,Auditing services,405
BIS,NMO,528,27/08/2014,Contractor's costs ,Certification Services ,D&J Services Limited,Auditing services,405
BIS,NMO,529,27/08/2014,Contractor's costs ,Certification Services ,D&J Services Limited,Auditing services,405
BIS,NMO,530,27/08/2014,Contractor's costs ,Certification Services ,D&J Services Limited,Auditing services,405
BIS,NMO,531,27/08/2014,Contractor's costs ,Certification Services ,D&J Services Limited,Auditing services,405
BIS,NMO,526,27/08/2014,Contractor's costs ,Certification Services ,D&J Services Limited,Auditing services,824.94
BIS,NMO,525,27/08/2014,Contractor's costs ,Certification Services ,D&J Services Limited,Auditing services,949.42
BIS,NMO,532,27/08/2014,Contractor's costs ,Certification Services ,D&J Services Limited,Auditing services,1147.79
BIS,NMO,HSC8087363,08/08/2014,Courier services,Certification Services ,Dhl International (Uk) Ltd,Courier services,150.36
BIS,NMO,2014-011,08/08/2014,Seminars and conferences,Enforcement ,Electrical Safety First,Conference,90
BIS,NMO,547407757,08/08/2014,Stationery,Certification Services ,Federal Express Europe Inc,Stationery,14.35
BIS,NMO,634128,08/08/2014,Legal services,Change & Development ,Field Fisher Waterhouse,NPL Project - Legal advice,9905.91
BIS,NMO,52489,27/08/2014,Postage,Corporate Services ,FP Executive Agency,Consumables for franking machine,229.2
BIS,NMO,44142131,27/08/2014,Postage,Corporate Services ,FP Teleset,Franking machine postage download,1000
BIS,NMO,131066-B,15/08/2014,Building advisors,Estates,HENNINGSON DURHAM AND RICHARDS,Building advisors,3643.2
BIS,NMO,161209-B,08/08/2014,Building advisors,Estates,HENNINGSON DURHAM AND RICHARDS,Building advisors,6541.2
BIS,NMO,2346758498,08/08/2014,Car hire,Programmes,Hertz UK Limited,Car hire,61.3
BIS,NMO,2346767002,08/08/2014,Car hire,Utilities,Hertz UK Limited,Car hire,89.04
BIS,NMO,2346770925,08/08/2014,Car hire,Enforcement ,Hertz UK Limited,Car hire,99.62
BIS,NMO,2346795544,15/08/2014,Car hire,Certification Services ,Hertz UK Limited,Car hire,113.04
BIS,NMO,14/191(2),08/08/2014,Contractor's costs ,Programmes,Hopkins Van Mil,Leap seconds dialogue evaluation ,4623
BIS,NMO,469,08/08/2014,Conferences and exhibitions,Utilities,IGEM House Ltd,Hire of conference facilities,700
BIS,NMO,14/0489121,27/08/2014,Hire of office equipment ,Corporate Services ,ING Lease (UK) Limited,Quarterly lease charge of franking machine,312
BIS,NMO,J017320494,08/08/2014,Telecommunications,Corporate Services ,Intercity Telecom Ltd,Mobile calls & line rental,725.75
BIS,NMO,Cert2014/3472,08/08/2014,OIML certificate registration fees,Certification Services ,International Organization of Legal Metrology,OIML Certificate registration fees,2251.35
BIS,NMO,1003088900,08/08/2014,Laboratory testing,Enforcement ,Intertek Testing&Certification,Appliance testing ,26559
BIS,NMO,68913,15/08/2014,Conferences and exhibitions,Regulation,ITSA Limited,Hire of conference facilities,1143.6
BIS,NMO,311802,27/08/2014,Miscellaneous,Corporate Services ,Kent & Sussex Vending,Coffee machine supplies,332.13
BIS,NMO,20,08/08/2014,Contractor's costs ,Certification Services ,Legal Metrology Ltd,Overseas market surveillance training ,3044.95
BIS,NMO,14028,15/08/2014,Contractor's costs ,Certification Services ,LegMetConsult,Auditor's travel expenses,119.25
BIS,NMO,14031,27/08/2014,Contractor's costs ,Certification Services ,LegMetConsult,Auditing services,479.4
BIS,NMO,50335288,27/08/2014,NMS Science Programmes,Programmes,LGC Ltd,Government Chemist Programme,91666
BIS,NMO,50330901,08/08/2014,NMS Science Programmes,Programmes,LGC Ltd,IRD Programme,115330
BIS,NMO,50331475,08/08/2014,NMS Science Programmes,Programmes,LGC Ltd,Chem Bio Programme,115900
BIS,NMO,50331476,08/08/2014,NMS Science Programmes,Programmes,LGC Ltd,Chem Bio Programme,121277
BIS,NMO,50331477,08/08/2014,NMS Science Programmes,Programmes,LGC Ltd,Chem Bio Programme,129351
BIS,NMO,50332808,15/08/2014,NMS Science Programmes,Programmes,LGC Ltd,Government Chemist Programme,274998
BIS,NMO,118210,27/08/2014,Scientific equipment ,Certification Services ,LGG CHARLESWORTH LTD,Taxi meter seals,370.82
BIS,NMO,1293,27/08/2014,Contractor's costs ,Certification Services ,LMCS,Auditor's travel expenses,34.8
BIS,NMO,121988,27/08/2014,Telecommunications,Corporate Services ,Maintel Voice & Data Limited,Phone calls and line rental,1764.23
BIS,NMO,101,15/08/2014,Hospitality,Certification Services ,Maria's Cooking,Catering for meeting ,334.46
BIS,NMO,55909,27/08/2014,Secondment ,Change & Development ,National Physical Laboratory,Secondment ,4159.62
BIS,NMO,55910,08/08/2014,Electricity,Estates,National Physical Laboratory,Electricity charges,4250.51
BIS,NMO,C10069,08/08/2014,NMS Science Programmes,Programmes,National Physical Laboratory,Materials & Modelling Programme,6151.04
BIS,NMO,C10086,08/08/2014,NMS Science Programmes,Programmes,National Physical Laboratory,Knowledge Transfer Programme,9983
BIS,NMO,C10075,08/08/2014,NMS Science Programmes,Programmes,National Physical Laboratory,Chem Bio Programme,18179.31
BIS,NMO,55898,08/08/2014,Consultancy,Change & Development ,National Physical Laboratory,NPL New Model Project costs ,22610.4
BIS,NMO,C10084,08/08/2014,NMS Science Programmes,Programmes,National Physical Laboratory,Engineering & Flow Programme,37004.05
BIS,NMO,C10074,08/08/2014,NMS Science Programmes,Programmes,National Physical Laboratory,IRD Programme,40288.74
BIS,NMO,C10085,08/08/2014,NMS Science Programmes,Programmes,National Physical Laboratory,Materials & Modelling Programme,60688.57
BIS,NMO,C10077,08/08/2014,NMS Science Programmes,Programmes,National Physical Laboratory,EMT Programme,97043.32
BIS,NMO,C10083,08/08/2014,NMS Science Programmes,Programmes,National Physical Laboratory,Chem Bio Programme,127012.25
BIS,NMO,C10096,08/08/2014,NMS Science Programmes,Programmes,National Physical Laboratory,Materials & Modelling Programme,142649.56
BIS,NMO,C10090,08/08/2014,NMS Science Programmes,Programmes,National Physical Laboratory,AIR Programme,161104.67
BIS,NMO,C10091,08/08/2014,NMS Science Programmes,Programmes,National Physical Laboratory,AIR Programme,170295.87
BIS,NMO,C10092,08/08/2014,NMS Science Programmes,Programmes,National Physical Laboratory,IRD Programme,177796.49
BIS,NMO,C10087,08/08/2014,NMS Science Programmes,Programmes,National Physical Laboratory,IRD Programme,238485.07
BIS,NMO,C10099,08/08/2014,NMS Science Programmes,Programmes,National Physical Laboratory,Knowledge Exchange Programme,239779.47
BIS,NMO,C10078,08/08/2014,NMS Science Programmes,Programmes,National Physical Laboratory,Materials & Modelling Programme,240634.79
BIS,NMO,C10095,08/08/2014,NMS Science Programmes,Programmes,National Physical Laboratory,EMT Programme,271828.05
BIS,NMO,C10080,08/08/2014,NMS Science Programmes,Programmes,National Physical Laboratory,AIR Programme,278147.68
BIS,NMO,C10098,08/08/2014,NMS Science Programmes,Programmes,National Physical Laboratory,Chem Bio Programme,345067.7
BIS,NMO,C10097,08/08/2014,NMS Science Programmes,Programmes,National Physical Laboratory,Engineering & Flow Programme,368396.88
BIS,NMO,C10081,08/08/2014,NMS Science Programmes,Programmes,National Physical Laboratory,EMT Programme,381418.75
BIS,NMO,C10082,08/08/2014,NMS Science Programmes,Programmes,National Physical Laboratory,Engineering & Flow Programme,399602.76
BIS,NMO,B1247,27/08/2014,Hospitality,Certification Services ,NPLSC,Catering ,218.86
BIS,NMO,O322576,27/08/2014,Contractor's costs ,Certification Services ,Omega,Contractor's travel costs ,308.26
BIS,NMO,O321788,27/08/2014,Contractor's costs ,Certification Services ,Omega,Contractor's travel costs ,1698.41
BIS,NMO,GBE181426,08/08/2014,Laboratory testing,Utilities,SGS United Kingdom Ltd,Gas dispute meter testing ,33062.24
BIS,NMO,12/08/2014,15/08/2014,Hospitality,Certification Services ,The Cavan Bakery,Catering for meeting ,90
BIS,NMO,13/08/2014,27/08/2014,Hospitality,Enforcement ,The Cavan Bakery,Catering for meeting ,615.6
BIS,NMO,1180 0282 1555,08/08/2014,Laboratory testing,Enforcement ,Thunen Inst of Wood Research,Wood sample testing ,324.27
BIS,NMO,1180 0295 3366,08/08/2014,Laboratory testing,Enforcement ,Thunen Inst of Wood Research,Wood sample testing ,2400.66
BIS,NMO,6681193,08/08/2014,Courier services,Certification Services ,Tnt International,Courier services,29.8
BIS,NMO,6666755,15/08/2014,Courier services,Enforcement ,Tnt International,Courier services,2200
BIS,NMO,994469,15/08/2014,IT services,Corporate Services ,Triad Group Plc,IT Helpdesk and support,3780
BIS,NMO,81,27/08/2014,Contractor's costs ,Certification Services ,TSPL Consulting Ltd,Auditor's travel expenses,157.5
BIS,NMO,78,08/08/2014,Contractor's costs ,Certification Services ,TSPL Consulting Ltd,Training services and expenses,806.97
BIS,NMO,79,27/08/2014,Contractor's costs ,Certification Services ,TSPL Consulting Ltd,Auditing services,1054.15
BIS,NMO,1790035317,08/08/2014,NMS Science Programmes,Programmes,TUV SUD NEL Ltd,Engineering & Flow Programme,12000
BIS,NMO,1790035318,08/08/2014,NMS Science Programmes,Programmes,TUV SUD NEL Ltd,Engineering & Flow Programme,70500
BIS,NMO,1790035303,08/08/2014,NMS Science Programmes,Programmes,TUV SUD NEL Ltd,Engineering & Flow Programme,102000
